bitfinex-derivatives/quotes_BNBF0:USTF0_20241225
["timestamp","ask_amount","ask_price","bid_price","bid_amount"]
[1735089049838,1.14295084,701.0,699.68,0.28584495]
[1735089050042,0.26246775,700.99,699.68,0.28584495]
[1735089050244,1.14298731,700.98,699.68,0.28584495]
[1735089050443,0.28520499,701.25,699.68,0.28584495]
[1735089050444,0.88051956,700.97,699.68,0.28584495]
[1735089050642,0.88060684,700.96,699.68,0.28584495]
[1735089050839,0.88060684,700.95,699.68,0.28584495]
[1735089051041,0.88060684,700.94,699.68,0.28584495]
[1735089051245,0.88060684,700.93,699.68,0.28584495]
[1735089051446,0.88060684,700.92,699.68,0.28584495]
[1735089051642,0.88060684,700.91,699.68,0.28584495]
[1735089051841,0.88060684,700.9,699.68,0.28584495]
[1735089052046,0.88060684,700.89,699.68,0.28584495]
[1735089052244,1.07182841,701.14,699.68,0.28584495]
[1735089052442,1.14331708,701.13,699.68,0.28584495]
[1735089052749,1.14331708,701.12,699.68,0.28584495]
[1735089052947,1.14331708,701.11,699.68,0.28584495]
[1735089053142,1.14331708,701.1,699.68,0.28584495]
[1735089053343,1.14331708,701.09,699.68,0.28584495]
[1735089053546,1.1433193,701.08,699.68,0.28584495]
[1735089053747,1.1433193,701.07,699.68,0.28584495]
[1735089053945,1.1433193,701.06,699.68,0.28584495]
[1735089054250,1.1433193,701.05,699.68,0.28584495]
[1735089054451,1.1433193,701.04,699.68,0.28584495]
[1735089054645,1.1433193,701.03,699.68,0.28584495]
[1735089054845,1.1433193,701.02,699.68,0.28584495]
[1735089055048,1.1433193,701.01,699.68,0.28584495]
[1735089055251,1.07182841,701.12,699.68,0.28584495]
[1735089055252,1.1433193,701.0,699.68,0.28584495]
[1735089055449,1.1433193,700.99,699.68,0.28584495]
[1735089055646,1.1433193,700.98,699.68,0.28584495]
[1735089055844,1.1433193,700.97,699.68,0.28584495]
[1735089056050,1.1433193,700.96,699.68,0.28584495]
[1735089056250,1.14331767,700.95,699.68,0.28584495]
[1735089056447,1.14331767,700.94,699.68,0.28584495]
[1735089056647,1.14331767,700.93,699.68,0.28584495]
[1735089056851,0.8808483,700.92,699.68,0.28584495]
[1735089057046,0.8808483,700.91,699.68,0.28584495]
[1735089057246,0.8808483,700.9,699.68,0.28584495]
[1735089057553,0.28520499,701.25,699.68,0.28584495]
[1735089057554,0.8808483,700.89,699.68,0.28584495]
[1735089057753,0.8808483,700.88,699.68,0.28584495]
[1735089057954,0.8808483,700.87,699.68,0.28584495]
[1735089058254,0.8808483,700.86,699.68,0.28584495]
[1735089058449,0.8808483,700.85,699.68,0.28584495]
[1735089058753,0.8808483,700.84,699.68,0.28584495]
[1735089058953,0.8808483,700.83,699.68,0.28584495]
[1735089059146,0.8808483,700.82,699.68,0.28584495]
[1735089059350,0.8808483,700.81,699.68,0.28584495]
[1735089059554,0.8808483,700.8,699.68,0.28584495]
[1735089059749,0.8808483,700.79,699.68,0.28584495]
[1735089059956,0.8808483,700.78,699.68,0.28584495]
[1735089060254,0.8808483,700.77,699.68,0.28584495]
[1735089060451,0.8808483,700.76,699.68,0.28584495]
[1735089060656,0.8808483,700.75,699.68,0.28584495]
[1735089060850,0.8808483,700.74,699.68,0.28584495]
[1735089061051,0.8808483,700.73,699.68,0.28584495]
[1735089061354,0.8808483,700.72,699.68,0.28584495]
[1735089061553,0.88255902,700.71,699.68,0.28584495]
[1735089061754,0.88255902,700.7,699.68,0.28584495]
[1735089061949,0.88255902,700.69,699.68,0.28584495]
[1735089062149,0.88255902,700.68,699.68,0.28584495]
[1735089062453,0.28520499,701.25,699.68,0.28584495]
[1735089062454,0.88255902,700.67,699.68,0.28584495]
[1735089062652,0.88255902,700.66,699.68,0.28584495]
[1735089062853,0.88255902,700.65,699.68,0.28584495]
[1735089063157,0.88255902,700.64,699.68,0.28584495]
[1735089063356,0.88255902,700.63,699.68,0.28584495]
[1735089063559,0.88255902,700.62,699.68,0.28584495]
[1735089063757,0.88255902,700.61,699.68,0.28584495]
[1735089063957,0.88255902,700.6,699.68,0.28584495]
[1735089064154,0.88255902,700.59,699.68,0.28584495]
[1735089064351,0.88249941,700.58,699.68,0.28584495]
[1735089064556,0.88249941,700.57,699.68,0.28584495]
[1735089064757,0.88249941,700.56,699.68,0.28584495]
[1735089065058,0.88249941,700.55,699.68,0.28584495]
[1735089065258,0.88249941,700.54,699.68,0.28584495]
[1735089065458,0.88249941,700.53,699.68,0.28584495]
[1735089065658,0.88249941,700.52,699.68,0.28584495]
[1735089065859,0.88249941,700.51,699.68,0.28584495]
[1735089066054,0.88249941,700.5,699.68,0.28584495]
[1735089066252,0.28520499,701.25,699.68,0.28584495]
[1735089066253,0.88249941,700.49,699.68,0.28584495]
[1735089066458,0.88249941,700.48,699.68,0.28584495]
[1735089066763,0.88249941,700.47,699.68,0.28584495]
[1735089066958,0.88249941,700.46,699.68,0.28584495]
[1735089067158,0.88249941,700.45,699.68,0.28584495]
[1735089067361,0.88249941,700.44,699.68,0.28584495]
[1735089067561,0.88249941,700.43,699.68,0.28584495]
[1735089067761,0.88249941,700.42,699.68,0.28584495]
[1735089068061,0.88249941,700.41,699.68,0.28584495]
[1735089068359,0.88249941,700.4,699.68,0.28584495]
[1735089068561,0.88249941,700.39,699.68,0.28584495]
[1735089068761,0.88249941,700.38,699.68,0.28584495]
[1735089068955,0.88249941,700.37,699.68,0.28584495]
[1735089069159,0.88249941,700.36,699.68,0.28584495]
[1735089069455,0.88249941,700.35,699.68,0.28584495]
[1735089069759,0.88249941,700.34,699.68,0.28584495]
[1735089069960,0.88249941,700.33,699.68,0.28584495]
[1735089070261,0.88249941,700.32,699.68,0.28584495]
[1735089070662,0.88249941,700.31,699.68,0.28584495]
[1735089070963,0.88249941,700.3,699.68,0.28584495]
[1735089071162,0.28520499,701.25,699.68,0.28584495]
[1735089071363,1.14463135,701.24,699.68,0.28584495]
[1735089071563,1.42984447,701.23,699.68,0.28584495]
[1735089071763,1.42984854,701.22,699.68,0.28584495]
[1735089071964,1.42986025,701.21,699.68,0.28584495]
[1735089072262,1.14463899,701.2,699.68,0.28584495]
[1735089072462,1.14463899,701.19,699.68,0.28584495]
[1735089072662,1.14463899,701.18,699.68,0.28584495]
[1735089072861,1.14463899,701.17,699.68,0.28584495]
[1735089073060,1.14463899,701.16,699.68,0.28584495]
[1735089073257,1.14463899,701.15,699.68,0.28584495]
[1735089073463,1.14463899,701.14,699.68,0.28584495]
[1735089073662,1.14463899,701.13,699.68,0.28584495]
[1735089073864,1.42989686,701.12,699.68,0.28584495]
[1735089074058,1.42990093,701.11,699.68,0.28584495]
[1735089074256,1.429905,701.1,699.68,0.28584495]
[1735089074458,1.42990906,701.09,699.68,0.28584495]
[1735089074658,1.14468593,701.08,699.68,0.28584495]
[1735089074858,1.14468593,701.07,699.68,0.28584495]
[1735089075060,1.14468593,701.06,699.68,0.28584495]
[1735089075262,1.14468593,701.05,699.68,0.28584495]
[1735089075461,0.28527007,701.09,699.68,0.28584495]
[1735089075462,1.14468361,701.04,699.68,0.28584495]
[1735089075665,1.4299781,701.03,699.68,0.28584495]
[1735089075964,1.14468361,701.02,699.68,0.28584495]
[1735089076157,1.14468361,701.01,699.68,0.28584495]
[1735089076357,0.26254039,701.0,699.68,0.28584495]
[1735089076563,1.14439701,700.99,699.68,0.28584495]
[1735089076863,1.14439701,700.98,699.68,0.28584495]
[1735089077063,1.14439701,700.97,699.68,0.28584495]
[1735089077259,1.14439701,700.96,698.96,1.06947192]
[1735089077465,1.14442072,700.95,698.96,1.06947192]
[1735089077663,1.14442072,700.94,698.91,1.06947192]
[1735089077862,1.14442072,700.93,698.91,1.06947192]
[1735089078065,1.14442072,700.92,698.91,1.06947192]
[1735089078263,1.14442072,700.91,698.91,1.06947192]
[1735089078560,1.14442072,700.9,698.91,1.06947192]
[1735089078766,1.14442072,700.89,698.84,1.06947192]
[1735089078967,0.88185662,700.88,698.84,1.06947192]
[1735089079166,0.88185662,700.87,698.84,1.06947192]
[1735089079467,0.88143369,700.86,698.83,1.06947192]
[1735089079661,0.88143369,700.85,698.83,1.06947192]
[1735089079866,0.26258393,700.84,698.83,1.06947192]
[1735089080163,0.88150757,700.83,698.83,1.06947192]
[1735089080363,0.64817253,701.52,698.75,1.06947192]
[1735089080364,0.88128159,700.82,698.75,1.06947192]
[1735089080561,0.88128159,700.81,698.75,1.06947192]
[1735089080761,0.88128159,700.8,698.75,1.06947192]
[1735089080965,1.14390055,700.79,698.75,1.06947192]
[1735089081167,1.14390055,700.78,698.75,1.06947192]
[1735089081463,1.14390055,700.77,698.69,1.06947192]
[1735089081669,1.14390055,700.76,698.69,1.06947192]
[1735089081868,1.14390055,700.75,698.69,1.06947192]
[1735089082069,1.14390055,700.74,698.69,1.06947192]
[1735089082270,1.14390055,700.74,698.26,2.18350517]
[1735089082271,1.14390055,700.73,698.52,1.06947192]
[1735089082466,1.28619409,701.32,698.52,1.06947192]
[1735089082467,1.14390055,700.72,698.52,1.06947192]
[1735089082669,1.14390055,700.71,698.52,1.06947192]
[1735089082866,1.14393179,700.7,698.52,1.06947192]
[1735089083065,1.14393179,700.69,698.5,1.06947192]
[1735089083267,1.14393179,700.68,698.5,1.06947192]
[1735089083470,1.14393179,700.67,698.5,1.06947192]
[1735089083666,1.14393179,700.66,698.5,1.06947192]
[1735089083970,1.14393179,700.66,698.26,1.2833663]
[1735089083971,1.14393179,700.65,698.54,1.06947192]
[1735089084170,1.14393179,700.64,698.54,1.06947192]
[1735089084465,1.07182841,701.08,698.54,1.06947192]
[1735089084466,1.14393179,700.63,698.54,1.06947192]
[1735089084671,1.14393179,700.62,698.51,1.06947192]
[1735089084870,1.14393179,700.61,698.51,1.06947192]
[1735089085070,1.14393179,700.6,698.51,1.06947192]
[1735089085270,1.14393179,700.59,698.51,1.06947192]
[1735089085471,1.14393179,700.58,698.52,1.06947192]
[1735089085665,1.14394335,700.57,698.52,1.06947192]
[1735089085869,1.14394335,700.56,698.52,1.06947192]
[1735089086069,1.14394335,700.55,698.52,1.06947192]
[1735089086370,1.14394335,700.54,698.46,1.06947192]
[1735089086569,0.88128159,700.53,698.46,1.06947192]
[1735089086768,0.88128159,700.52,698.46,1.06947192]
[1735089086971,0.88128159,700.51,698.46,1.06947192]
[1735089087172,9.08112445,701.3,698.46,1.06947192]
[1735089087173,0.88128159,700.5,698.46,1.06947192]
[1735089087373,0.88128159,700.49,698.43,1.06947192]
[1735089087573,0.88128159,700.48,698.43,1.06947192]
[1735089087772,0.88128159,700.47,698.43,1.06947192]
[1735089087975,0.88128159,700.46,698.45,1.06947192]
[1735089088176,0.88128159,700.45,698.45,1.06947192]
[1735089088374,0.88128159,700.44,698.45,1.06947192]
[1735089088572,0.88128159,700.43,698.45,1.06947192]
[1735089088777,0.88128159,700.42,698.42,1.06947192]
[1735089088973,1.07182841,701.13,698.42,1.06947192]
[1735089089275,1.14069107,701.12,698.42,1.06947192]
[1735089089477,1.14069107,701.11,698.6,1.06947192]
[1735089089677,1.14069107,701.1,698.6,1.06947192]
[1735089089972,1.14069107,701.09,698.6,1.06947192]
[1735089090171,1.14069107,701.08,698.6,1.06947192]
[1735089090371,1.07182841,701.3,698.67,1.06947192]
[1735089090372,1.14069107,701.07,698.67,1.06947192]
[1735089090575,1.14069107,701.06,698.67,1.06947192]
[1735089090772,1.14017785,701.05,698.67,1.06947192]
[1735089090973,1.14017785,701.04,698.67,1.06947192]
[1735089091175,0.87751322,701.03,698.67,1.06947192]
[1735089091377,1.14019687,701.02,698.64,1.06947192]
[1735089091674,1.13992646,701.01,698.64,1.06947192]
[1735089091877,1.13992646,701.0,698.64,1.06947192]
[1735089092074,1.13992646,700.99,698.64,1.06947192]
[1735089092275,1.13992646,700.98,698.64,1.06947192]
[1735089092474,1.13992646,700.97,698.25,1.06947192]
[1735089092779,1.13992646,700.96,698.25,1.06947192]
[1735089092981,1.13992646,700.95,698.25,1.06947192]
[1735089093182,1.13992646,700.94,698.25,1.06947192]
[1735089093377,1.13992646,700.93,698.25,1.06947192]
[1735089093579,1.13992646,700.92,698.22,1.06947192]
[1735089093880,1.13992646,700.91,698.22,1.06947192]
[1735089094080,1.13992646,700.9,698.22,1.06947192]
[1735089094277,1.13992646,700.89,698.25,1.06947192]
[1735089094481,0.26268365,700.88,698.25,1.06947192]
[1735089094682,1.13930059,700.87,698.25,1.06947192]
[1735089094884,1.13930059,700.86,698.25,1.06947192]
[1735089095184,1.13930059,700.85,698.25,1.06947192]
[1735089095382,1.13930059,700.84,698.22,1.06947192]
[1735089095583,1.13930059,700.83,698.22,1.06947192]
[1735089095789,1.07182841,701.49,698.22,1.06947192]
[1735089095790,1.13930059,700.82,698.22,1.06947192]
[1735089096083,1.13930059,700.81,698.21,1.06947192]
[1735089096284,1.13930059,700.8,698.21,1.06947192]
[1735089096478,1.07182841,701.49,698.21,1.06947192]
[1735089096479,1.13930059,700.79,698.21,1.06947192]
[1735089096683,0.87661694,700.78,698.21,1.06947192]
[1735089096984,1.13930214,700.77,698.2,1.06947192]
[1735089097183,1.13930214,700.76,698.2,1.06947192]
[1735089097378,1.13930214,700.75,698.2,1.06947192]
[1735089097580,1.13892126,700.74,698.2,1.06947192]
[1735089097786,1.13892126,700.73,698.2,1.06947192]
[1735089098087,1.13894635,700.72,697.99,1.06947192]
[1735089098280,1.07182841,701.27,697.99,1.06947192]
[1735089098281,1.13894635,700.71,697.99,1.06947192]
[1735089098485,1.13894635,700.7,697.99,1.06947192]
[1735089098781,1.07182841,701.27,697.99,1.06947192]
[1735089098782,1.13894635,700.69,697.99,1.06947192]
[1735089098984,1.13894635,700.68,697.99,1.06947192]
[1735089099180,1.13894635,700.67,697.99,1.06947192]
[1735089099384,1.13894635,700.67,697.72,2.40836358]
[1735089099385,0.87626115,700.66,697.94,1.06947192]
[1735089099582,1.13897145,700.65,697.94,1.06947192]
[1735089099780,1.13897145,700.64,697.94,1.06947192]
[1735089099980,1.13897145,700.63,697.94,1.06947192]
[1735089100287,1.13897145,700.62,697.94,1.06947192]
[1735089100482,1.13897145,700.61,697.95,1.06947192]
[1735089100685,1.13897145,700.6,697.95,1.06947192]
[1735089100885,1.13897145,700.59,697.95,1.06947192]
[1735089101189,2.18831634,701.67,697.72,1.32500443]
[1735089101190,1.13897145,700.58,698.16,1.06947192]
[1735089101383,1.13897145,700.57,698.16,1.06947192]
[1735089101585,1.13897145,700.56,698.16,1.06947192]
[1735089101783,1.13897145,700.55,698.19,1.06947192]
[1735089101984,1.13897145,700.54,698.19,1.06947192]
[1735089102183,0.87626115,700.53,698.3,0.28640985]
[1735089102389,1.13890469,700.52,698.3,0.28640985]
[1735089102591,1.13890469,700.51,698.3,0.28640985]
[1735089102791,1.13890469,700.5,698.48,1.06947192]
[1735089102991,1.13890469,700.49,698.48,1.06947192]
[1735089103192,1.13890469,700.48,698.48,1.06947192]
[1735089103392,0.87626115,700.47,698.48,1.06947192]
[1735089103695,0.87556474,700.46,698.48,1.06947192]
[1735089103890,0.87556474,700.45,698.48,1.06947192]
[1735089104085,0.87556474,700.44,698.48,1.06947192]
[1735089104290,0.87556474,700.43,698.48,1.06947192]
[1735089104485,0.87556474,700.42,698.48,1.06947192]
[1735089104687,0.87556474,700.41,698.67,1.06947192]
[1735089104993,0.87556474,700.4,698.67,1.06947192]
[1735089105192,0.87556474,700.39,698.67,1.06947192]
[1735089105391,0.87556474,700.38,698.67,1.06947192]
[1735089105587,0.87556474,700.37,698.67,1.06947192]
[1735089105887,1.28619409,701.38,698.3,0.28640985]
[1735089105888,0.87556474,700.36,698.75,1.06947192]
[1735089106088,0.87556474,700.35,698.75,1.06947192]
[1735089106291,0.87556474,700.34,698.75,1.06947192]
[1735089106491,1.07182841,701.21,698.75,1.06947192]
[1735089106688,0.28522939,701.19,698.75,1.06947192]
[1735089106892,1.07182841,701.15,698.74,1.06947192]
[1735089107193,1.13841397,701.14,698.74,1.06947192]
[1735089107385,1.13841397,701.13,698.74,1.06947192]
[1735089107587,1.07182841,701.15,698.3,0.28640985]
[1735089107588,2.21024238,701.12,698.77,1.06947192]
[1735089107888,1.13841412,701.11,698.77,1.06947192]
[1735089108089,1.13841412,701.1,698.77,1.06947192]
[1735089108292,0.28522939,701.19,698.78,1.06947192]
[1735089108293,1.13841412,701.09,698.78,1.06947192]
[1735089108494,0.87578171,701.08,698.78,1.06947192]
[1735089108792,1.13840398,701.07,698.78,1.06947192]
[1735089108987,1.13840398,701.06,698.78,1.06947192]
[1735089109188,1.13840398,701.05,698.78,1.06947192]
[1735089109391,1.13840398,701.05,698.3,0.28640985]
[1735089109392,1.13840398,701.04,698.85,1.06947192]
[1735089109593,0.26262227,701.03,698.85,1.06947192]
[1735089109791,1.13866777,701.02,698.85,1.06947192]
[1735089109994,1.13866777,701.01,698.85,1.06947192]
[1735089110187,1.13866777,701.0,698.89,1.06947192]
[1735089110387,1.13866777,700.99,698.95,0.2861435]
[1735089110588,0.8760455,700.98,698.95,0.2861435]
[1735089110787,1.13866652,700.97,698.95,0.2861435]
[1735089110987,1.13866652,700.96,698.95,0.2861435]
[1735089111193,1.13866652,700.95,698.95,0.2861435]
[1735089111393,1.13866652,700.94,698.95,0.2861435]
[1735089111688,1.07182841,700.85,698.95,0.2861435]
[1735089111886,1.13866652,700.84,698.95,0.2861435]
[1735089112087,1.13866652,700.83,698.95,0.2861435]
[1735089112393,1.13866652,700.82,698.95,0.2861435]
[1735089112590,0.64830177,701.04,698.95,0.2861435]
[1735089112591,2.21049493,700.81,698.95,0.2861435]
[1735089112788,1.13866652,700.8,698.95,0.2861435]
[1735089112988,1.42405872,700.79,698.95,0.2861435]
[1735089113186,1.13866652,700.78,698.95,0.2861435]
[1735089113394,1.13871083,700.77,698.95,0.2861435]
[1735089113592,0.2853922,700.79,698.95,0.2861435]
[1735089113593,2.21053924,700.76,698.95,0.2861435]
[1735089113787,1.13871083,700.75,698.95,0.2861435]
[1735089113988,1.13871083,700.74,698.95,0.2861435]
[1735089114187,1.42412746,700.73,698.95,0.2861435]
[1735089114391,1.13871083,700.72,698.95,0.2861435]
[1735089114692,1.13871083,700.71,698.95,0.2861435]
[1735089114885,1.13871083,700.7,698.95,0.2861435]
[1735089115086,1.42414376,700.69,698.95,0.2861435]
[1735089115291,1.13871083,700.68,698.95,0.2861435]
[1735089115489,1.4241519,700.67,698.95,0.2861435]
[1735089115689,1.13959838,700.66,698.95,0.2861435]
[1735089115888,1.13959838,700.65,698.95,0.2861435]
[1735089116089,0.87693305,700.64,698.95,0.2861435]
[1735089116289,1.13962049,700.63,698.95,0.2861435]
[1735089116488,1.13962049,700.62,698.95,0.2861435]
[1735089116688,1.13962049,700.61,698.95,0.2861435]
[1735089116891,0.87693305,700.6,698.95,0.2861435]
[1735089117094,1.13961138,700.59,698.95,0.2861435]
[1735089117394,1.13961138,700.58,698.95,0.2861435]
[1735089117594,1.13961138,700.57,698.95,0.2861435]
[1735089117797,1.13961138,700.56,698.95,0.2861435]
[1735089117992,1.13961138,700.55,698.95,0.2861435]
[1735089118188,1.13961138,700.54,698.95,0.2861435]
[1735089118392,0.87693305,700.53,698.95,0.2861435]
[1735089118590,0.87739879,700.52,698.95,0.2861435]
[1735089118790,0.87739879,700.51,698.95,0.2861435]
[1735089118996,0.87739879,700.5,698.95,0.2861435]
[1735089119188,0.87739879,700.49,698.95,0.2861435]
[1735089119393,0.87739879,700.48,698.95,0.2861435]
[1735089119594,0.87739879,700.47,698.95,0.2861435]
[1735089119791,0.87739879,700.46,698.95,0.2861435]
[1735089119994,0.87739879,700.45,698.95,0.2861435]
[1735089120196,0.87739879,700.44,698.95,0.2861435]
[1735089120390,0.87739879,700.43,698.95,0.2861435]
[1735089120596,0.87739879,700.42,698.95,0.2861435]
[1735089120796,0.87739879,700.41,698.95,0.2861435]
[1735089121098,0.28544107,700.67,698.95,0.2861435]
[1735089121099,0.877679,700.4,698.95,0.2861435]
[1735089121299,0.877679,700.39,698.95,0.2861435]
[1735089121596,0.877679,700.38,698.95,0.2861435]
[1735089121797,0.877679,700.37,698.95,0.2861435]
[1735089121998,0.877679,700.36,698.95,0.2861435]
[1735089122198,0.877679,700.35,698.95,0.2861435]
[1735089122504,0.877679,700.34,698.95,0.2861435]
[1735089122691,0.877679,700.33,698.95,0.2861435]
[1735089122893,0.877679,700.32,698.95,0.2861435]
[1735089123093,0.877679,700.31,698.95,0.2861435]
[1735089123298,0.877679,700.3,698.95,0.2861435]
[1735089123494,0.877679,700.29,698.95,0.2861435]
[1735089123695,0.87786435,700.28,698.95,0.2861435]
[1735089123900,0.87786435,700.27,698.95,0.2861435]
[1735089124100,0.87789026,700.26,698.95,0.2861435]
[1735089124305,0.87789026,700.25,698.95,0.2861435]
[1735089124607,0.87789026,700.24,698.95,0.2861435]
[1735089124806,0.87789026,700.23,698.95,0.2861435]
[1735089125003,0.87789026,700.22,698.95,0.2861435]
[1735089125306,0.87789026,700.21,698.95,0.2861435]
[1735089125506,0.87789026,700.2,698.95,0.2861435]
[1735089125708,0.87789026,700.19,698.95,0.2861435]
[1735089125907,0.87789026,700.18,698.95,0.2861435]
[1735089126106,0.87789026,700.17,698.95,0.2861435]
[1735089126307,0.87789026,700.16,698.95,0.2861435]
[1735089126509,0.87789026,700.15,698.95,0.2861435]
[1735089126709,0.87833055,700.14,698.95,0.2861435]
[1735089126909,0.87833055,700.13,698.95,0.2861435]
[1735089127103,0.87833055,700.12,698.95,0.2861435]
[1735089127308,0.87833055,700.11,698.95,0.2861435]
[1735089127508,0.87833055,700.1,698.95,0.2861435]
[1735089127709,0.87833055,700.09,698.95,0.2861435]
[1735089127912,0.87833055,700.08,698.95,0.2861435]
[1735089128207,0.87833055,700.07,698.95,0.2861435]
[1735089128512,0.87833055,700.06,698.95,0.2861435]
[1735089128709,0.28544107,700.67,698.95,0.2861435]
[1735089128710,0.87833055,700.05,698.95,0.2861435]
[1735089128906,0.87833055,700.04,698.95,0.2861435]
[1735089129108,0.87833055,700.03,698.95,0.2861435]
[1735089129309,0.87833055,700.02,698.95,0.2861435]
[1735089129509,0.87833055,700.01,698.95,0.2861435]
[1735089129708,0.87903293,700.0,698.95,0.2861435]
[1735089129905,0.87903293,699.99,698.95,0.2861435]
[1735089130110,0.87903293,699.98,698.95,0.2861435]
[1735089130308,0.87903293,699.97,698.95,0.2861435]
[1735089130512,0.87903293,699.96,698.95,0.2861435]
[1735089130811,0.87903293,699.95,698.95,0.2861435]
[1735089131007,0.87903293,699.94,698.95,0.2861435]
[1735089131206,0.87903293,699.93,698.95,0.2861435]
[1735089131407,0.87903293,699.92,698.95,0.2861435]
[1735089131607,0.87903293,699.91,698.95,0.2861435]
[1735089131810,0.87903293,699.9,698.95,0.2861435]
[1735089132008,0.87903293,699.89,698.95,0.2861435]
[1735089132207,0.87903293,699.88,698.95,0.2861435]
[1735089132409,0.87903293,699.87,698.95,0.2861435]
[1735089132613,0.87995179,699.86,698.95,0.2861435]
[1735089132813,0.28544107,700.67,698.95,0.2861435]
[1735089133108,0.26272644,700.66,698.95,0.2861435]
[1735089133312,1.16541035,700.65,698.95,0.2861435]
[1735089133508,1.14268757,700.64,698.95,0.2861435]
[1735089133714,1.14268757,700.63,698.95,0.2861435]
[1735089133913,1.14268757,700.62,698.95,0.2861435]
[1735089134117,1.14268757,700.61,698.95,0.2861435]
[1735089134313,1.14268757,700.6,698.95,0.2861435]
[1735089134513,1.42816124,700.59,698.95,0.2861435]
[1735089134712,1.1426755,700.58,698.95,0.2861435]
[1735089134908,1.1426755,700.57,698.95,0.2861435]
[1735089135111,1.1426755,700.56,698.95,0.2861435]
[1735089135310,1.1426755,700.55,698.95,0.2861435]
[1735089135511,1.1426755,700.54,698.95,0.2861435]
[1735089135711,1.1426755,700.53,698.95,0.2861435]
[1735089135908,1.1426755,700.52,698.95,0.2861435]
[1735089136109,1.1426755,700.51,698.95,0.2861435]
[1735089136313,1.1426755,700.5,698.95,0.2861435]
[1735089136513,1.1426755,700.49,698.95,0.2861435]
[1735089136714,1.1426755,700.48,698.95,0.2861435]
[1735089136914,1.1426755,700.47,698.95,0.2861435]
[1735089137111,1.1426755,700.46,698.95,0.2861435]
[1735089137312,1.1426755,700.45,698.95,0.2861435]
[1735089137519,0.87996113,700.44,698.95,0.2861435]
[1735089137713,0.28547367,700.59,698.95,0.2861435]
[1735089137714,1.14264457,700.43,698.95,0.2861435]
[1735089137910,0.87996113,700.42,698.95,0.2861435]
[1735089138111,0.87996113,700.41,698.95,0.2861435]
[1735089138314,0.87996113,700.4,698.95,0.2861435]
[1735089138516,0.87996113,700.39,698.95,0.2861435]
[1735089138714,0.28547367,700.59,698.95,0.2861435]
[1735089138913,0.8814159,700.58,698.95,0.2861435]
[1735089139118,0.8814159,700.57,698.95,0.2861435]
[1735089139415,0.8814159,700.56,698.95,0.2861435]
[1735089139616,0.8814159,700.55,698.95,0.2861435]
[1735089139816,0.28547367,700.59,698.95,0.2861435]
[1735089139817,0.8814159,700.54,698.95,0.2861435]
[1735089140012,0.8814159,700.53,698.95,0.2861435]
[1735089140218,0.8814159,700.52,698.95,0.2861435]
[1735089140418,0.8814159,700.51,698.95,0.2861435]
[1735089140620,0.8818216,700.5,698.95,0.2861435]
[1735089140819,0.8818216,700.49,698.95,0.2861435]
[1735089141119,0.8818216,700.48,698.95,0.2861435]
[1735089141316,0.8818216,700.47,698.95,0.2861435]
[1735089141516,0.8818216,700.46,698.95,0.2861435]
[1735089141718,0.8818216,700.45,698.95,0.2861435]
[1735089141918,0.88173891,700.44,698.95,0.2861435]
[1735089142218,0.88173891,700.43,698.95,0.2861435]
[1735089142518,0.88171563,700.42,698.95,0.2861435]
[1735089142718,0.88171563,700.41,698.95,0.2861435]
[1735089142920,0.88171563,700.4,698.95,0.2861435]
[1735089143119,0.88171563,700.39,698.95,0.2861435]
[1735089143319,0.88171563,700.38,698.95,0.2861435]
[1735089143513,0.88171563,700.37,698.95,0.2861435]
[1735089143713,0.88171563,700.36,698.95,0.2861435]
[1735089143912,0.88171563,700.35,698.95,0.2861435]
[1735089144114,0.88171563,700.34,698.95,0.2861435]
[1735089144317,0.88171563,700.33,698.95,0.2861435]
[1735089144519,0.88171563,700.32,698.95,0.2861435]
[1735089144720,0.88171563,700.31,698.95,0.2861435]
[1735089144920,0.88143981,700.3,698.95,0.2861435]
[1735089145121,0.88143981,700.29,698.95,0.2861435]
[1735089145320,0.88143981,700.28,698.95,0.2861435]
[1735089145621,0.88143981,700.27,698.95,0.2861435]
[1735089145821,0.88143981,700.26,698.95,0.2861435]
[1735089146023,0.88143981,700.25,698.95,0.2861435]
[1735089146222,0.28547367,700.59,698.95,0.2861435]
[1735089146223,0.88143981,700.24,698.95,0.2861435]
[1735089146420,0.88143981,700.23,698.95,0.2861435]
[1735089146617,0.88143981,700.22,698.95,0.2861435]
[1735089146820,0.88143981,700.21,698.95,0.2861435]
[1735089147022,0.88143981,700.2,698.95,0.2861435]
[1735089147216,0.28547367,700.59,698.95,0.2861435]
[1735089147217,0.88143981,700.19,698.95,0.2861435]
[1735089147416,0.88143981,700.18,698.95,0.2861435]
[1735089147616,0.88143981,700.17,698.95,0.2861435]
[1735089147816,7.07072884,702.97,698.95,0.2861435]
[1735089148020,0.28458812,702.77,698.95,0.2861435]
[1735089148315,1.06663835,701.23,698.95,0.2861435]
[1735089148521,1.14347018,701.22,698.95,0.2861435]
[1735089148822,1.14347018,701.21,698.95,0.2861435]
[1735089149024,1.14347018,701.2,698.95,0.2861435]
[1735089149219,1.14347018,701.19,698.95,0.2861435]
[1735089149523,1.14347018,701.18,698.95,0.2861435]
[1735089149725,1.14347018,701.17,698.95,0.2861435]
[1735089150025,1.06663835,701.33,698.95,0.2861435]
[1735089150026,1.14347018,701.16,698.95,0.2861435]
[1735089150223,1.14347018,701.15,698.95,0.2861435]